[Event "TUR-ch Veterans 2020"]
[Site "Antalya-Belek"]
[Date "2020.01.20"]
[Round "2"]
[White "Akcun, Fayik"]
[Black "Cetinkaya, Vedat Ali"]
[Result "0-1"]
[ECO "C41"]
[WhiteElo "1671"]
[BlackElo "2026"]
[Annotator "NA"]
[PlyCount "142"]
[EventDate "2020.01.19"]
[EventCountry "TUR"]
[SourceTitle "playchess.com"]
[Source "ChessBase"]
[SourceQuality "1"]
[TimeControl "5400+30"]

1. e4 {[%emt 0:00:30]} e5 {[%emt 0:00:30]} 2. Nf3 {[%emt 0:00:30]} d6 {[%emt 0:00:00]} 3. d4 {[%emt 0:00:30]} Nf6 {[%emt 0:00:00]} 4. Nc3 {[%emt 0:01:30]} Nbd7 {[%emt 0:00:30]} 5. Bc4 {[%emt 0:06:30]} Be7 {[%emt 0:01:30]} 6. O-O {[%emt 0:04:30]} O-O {[%emt 0:01:30]} 7. h3 {[%emt 0:00:30]} c6 {[%emt 0:00:30]} 8. Bb3 {[%emt 0:02:30]} Qc7 {[%emt 0:01:30]} 9. Be3 {[%emt 0:08:30]} b5 {[%emt 0:02:30] C41: Philidor Defence} 10. d5 {[%emt 0:08:30]} b4 {[%emt 0:03:30]} 11. Ne2 $146 {[%emt 0:03:30]} ({Predecessor:} 11. Na4 Ba6 12. Re1 c5 13. c3 Nxe4 14. Bc2 Nef6 15. b3 Rfe8 16. c4 Bf8 17. a3 bxa3 18. Rxa3 {1-0 (64) Aigner,M (2263)-Thornally,F (2261) San Francisco 2005}) 11... c5 {[%emt 0:03:30]} 12. Ng3 {[%emt 0:00:30]} Nb6 {[%emt 0:03:30]} 13. c3 {[%emt 0:05:30]} a5 {[%emt 0:05:30]} 14. cxb4 {[%emt 0:03:30]} axb4 {[%emt 0:00:30]} 15. Nd2 {[%emt 0:01:30]} Ba6 {[%emt 0:03:30]} 16. Re1 {[%emt 0:00:30]} Rfc8 {[%emt 0:00:30]} 17. Rc1 {[%emt 0:05:30]} Qb7 {[%emt 0:05:30]} ({Better is} 17... g6 $15) 18. Bc2 {[%emt 0:06:30]} Bb5 {[%emt 0:05:30]} 19. Bb1 {[%emt 0:01:30]} Qa6 {[%emt 0:00:00]} 20. b3 {[%emt 0:04:30]} (20. Nf5 $11 Bf8 21. Qf3) 20... Bd3 {[%emt 0:00:00]} 21. Bxd3 {[%emt 0:00:30]} Qxd3 {[%emt 0:00:30]} 22. Qc2 {[%emt 0:00:30]} Qxc2 {[%emt 0:02:30]} 23. Rxc2 {[%emt 0:00:30]} Ne8 {[%emt 0:02:30]} 24. Nf5 {[%emt 0:00:30]} Kf8 {[%emt 0:00:30]} 25. f4 {[%emt 0:00:30]} Bf6 {[%emt 0:04:30]} 26. fxe5 {[%emt 0:00:30]} Bxe5 {[%emt 0:00:30]} 27. Nf3 {[%emt 0:01:30]} Nd7 {[%emt 0:08:30]} 28. Nxe5 {[%emt 0:04:30]} Nxe5 {[%emt 0:00:00]} 29. Rf1 {[%emt 0:00:30]} f6 {[%emt 0:06:00]} 30. Bf4 {[%emt 0:04:30]} Nf7 {[%emt 0:00:30]} 31. Ne3 {[%emt 0:00:30]} (31. g4 $11 {remains equal.}) 31... Ra6 {[%emt 0:01:30]} 32. Nc4 {[%emt 0:00:30]} Rca8 {[%emt 0:00:30]} 33. Rff2 {[%emt 0:00:00]} Ke7 {[%emt 0:00:30]} (33... Kg8 $17 34. Kf1 Nc7) 34. g4 {[%emt 0:02:00]} Nc7 {[%emt 0:02:30]} 35. Ne3 {[%emt 0:09:14]} (35. g5 $11 {remains equal.}) 35... g6 {[%emt 0:02:30]} (35... Nb5 $17 36. g5 fxg5) 36. h4 {[%emt 0:00:22]} Nb5 {[%emt 0:08:30]} 37. g5 {[%emt 0:01:30]} fxg5 {[%emt 0:00:30]} 38. Bxg5+ {[%emt 0:02:15]} Nxg5 {[%emt 0:04:30]} 39. hxg5 {[%emt 0:00:01]} Nc3 {[%emt 0:05:59]} 40. Rh2 {[%emt 0:00:50]} Rh8 {[%emt 0:04:38]} 41. Ng4 {[%emt 0:01:33]} Kf7 {[%emt 0:00:40]} 42. Nf6 {[%emt 0:00:06]} (42. Rcf2+ $11 Kg7 43. Nf6) 42... h5 {[%emt 0:00:43]} 43. Rhf2 {[%emt 0:01:12]} Ke7 {[%emt 0:01:04]} 44. Kh2 {[%emt 0:06:22]} Rha8 {[%emt 0:00:31]} 45. Kh3 {[%emt 0:03:23]} Rxa2 {[%emt 0:00:22]} 46. Ng8+ $19 {[%emt 0:00:59]} Ke8 {[%emt 0:02:37]} 47. Rxa2 {[%emt 0:00:18]} Rxa2 {[%emt 0:00:11]} 48. Rf6 {[%emt 0:00:15]} Nxe4 {[%emt 0:01:27]} 49. Re6+ {[%emt 0:00:08]} Kf8 {[%emt 0:00:07]} 50. Rxe4 {[%emt 0:02:13]} Kxg8 {[%emt 0:00:03]} 51. Re6 {[%emt 0:00:00]} Kf7 {[%emt 0:00:35]} 52. Rxd6 {[%emt 0:00:00]} Ra3 {[%emt 0:00:11]} 53. Rd7+ {[%emt 0:00:41]} Kf8 {[%emt 0:00:17]} 54. Rd6 {[%emt 0:00:44]} Rxb3+ {[%emt 0:01:43]} 55. Kh4 {[%emt 0:00:09]} Rd3 {[%emt 0:00:00]} 56. Rxg6 {[%emt 0:00:28]} b3 {[%emt 0:00:59]} 57. Rb6 {[%emt 0:00:47]} Rd4+ {[%emt 0:01:29]} 58. Kxh5 {[%emt 0:00:39]} Rb4 {[%emt 0:00:05]} 59. Rf6+ {[%emt 0:00:16]} Ke7 {[%emt 0:00:03]} 60. d6+ {[%emt 0:00:44]} Kd7 {[%emt 0:00:06]} 61. Rf1 {[%emt 0:00:43]} b2 {[%emt 0:00:18]} 62. Rb1 {[%emt 0:00:38]} c4 {[%emt 0:00:07]} 63. g6 {[%emt 0:00:15]} c3 {[%emt 0:00:03]} 64. g7 {[%emt 0:00:00]} Rb8 {[%emt 0:00:08]} 65. Kg6 {[%emt 0:00:31]} Kxd6 {[%emt 0:00:46]} 66. Kf7 {[%emt 0:00:22]} Kd5 {[%emt 0:00:08]} 67. Re1 {[%emt 0:00:31]} Kd6 {[%emt 0:02:15]} 68. Re6+ {[%emt 0:00:15]} Kc5 {[%emt 0:00:27]} 69. Re8 {[%emt 0:00:41]} b1=Q {[%emt 0:00:17]} 70. g8=Q {[%emt 0:00:28]} Qb3+ {[%emt 0:00:29]} 71. Kg7 {[%emt 0:00:15]} Qxg8+ {[%emt 0:00:30]} 0-1

[Event "TUR-ch Veterans 2020"]
[Site "Antalya-Belek"]
[Date "2020.01.20"]
[Round "2"]
[White "Bagci, Hikmet"]
[Black "Yuksel, Mustafa"]
[Result "1-0"]
[ECO "C03"]
[WhiteElo "1603"]
[BlackElo "2004"]
[Annotator "NA"]
[PlyCount "73"]
[EventDate "2020.01.19"]
[EventCountry "TUR"]
[SourceTitle "playchess.com"]
[Source "ChessBase"]
[SourceQuality "1"]
[TimeControl "5400+30"]

{[%evp 8,72,23,30,33,32767,32767,32767,32767,32767,32767,32767,32767,32767,32767,32767,32767,32767,16,8,32767,32767,32767,32767,32767,-115,-1,32767,0,-103,-46,-151,39,43,32767,30,66,94,32767,135,422,-312,40,0,0,-3,0,0,32767,32767,32767,0,32767,32767,44,37,47,32767,32767,32767,550,627,747,32767,810,977,1183]} 1. e4 {[%emt 0:00:30]} e6 {[%emt 0:00:30]} 2. d4 {[%emt 0:00:00]} d5 {[%emt 0:00:00]} 3. Nd2 {[%emt 0:00:00]} h6 {[%emt 0:00:00]} (3... c5 4. Ngf3 cxd4 5. exd5 Qxd5 6. Bc4 Qd8 7. O-O Nf6 8. Nb3 Nc6 9. Nbxd4 Nxd4 10. Nxd4 Be7 11. c3 O-O 12. Qf3 Qc7 {½-½ (12) Guseinov,G (2666)-Nepomniachtchi,I (2767) Moscow 2019}) 4. Ngf3 {[%emt 0:00:30]} Nf6 {[%emt 0:00:00]} 5. e5 {[%emt 0:00:30]} Nfd7 {[%emt 0:00:00]} 6. c4 {[%emt 0:00:30] C03: French Tarrasch: Unusual Black 3rd moves} c5 {[%emt 0:00:30]} 7. cxd5 {[%emt 0:00:30]} exd5 {[%emt 0:00:30]} 8. Qb3 {[%emt 0:02:30]} Nc6 {[%emt 0:12:30]} 9. Qxd5 {[%emt 0:00:30]} cxd4 $146 {[%emt 0:08:30]} ({Predecessor:} 9... Be7 10. e6 fxe6 11. Qxe6 cxd4 {0-1 (52) Dragnev,V (2364)-Torma,R (2417) Budapest 2014}) 10. Bb5 {[%emt 0:06:30]} Bc5 {[%emt 0:18:30]} 11. O-O {[%emt 0:03:30]} O-O {[%emt 0:01:30]} 12. Bxc6 {[%emt 0:03:30]} bxc6 {[%emt 0:00:30]} 13. Qxc6 {[%emt 0:00:00]} Rb8 {[%emt 0:00:30]} 14. e6 {[%emt 0:09:00]} Rb6 {[%emt 0:04:30]} 15. exf7+ {[%emt 0:00:30]} Rxf7 {[%emt 0:00:30]} 16. Qd5 $11 {[%emt 0:00:30]} Rd6 $2 {[%emt 0:01:30]} (16... Bb7 $17 17. Qh5 Qf6) 17. Qb3 {[%emt 0:01:30]} Rb6 {[%emt 0:02:30]} ({Better is} 17... Ba6 $17 18. Nc4 Re6) 18. Qc2 {[%emt 0:01:30]} Re6 {[%emt 0:03:30] [#]} 19. Nb3 {[%emt 0:03:30] [#]} (19. b4 $1 $11 {[%mdl 512] remains equal.} Bb6 (19... Bxb4 20. Nxd4) 20. Bb2) 19... Bb6 $2 {[%emt 0:00:30]} ({Better is} 19... Rxf3 $1 $19 {[%mdl 512]} 20. Nxc5 {[#]} (20. gxf3 $2 {is the wrong capture.} Bb7 $17) 20... Nxc5 $1 {[%mdl 512]} 21. Qxc5 (21. gxf3 $2 {loses.} Qd5 $19) 21... Rg6) 20. Nbxd4 {[%emt 0:01:30]} Ref6 {[%emt 0:04:30]} 21. Be3 {[%emt 0:09:30]} Bb7 {[%emt 0:00:00] [#]} 22. Rad1 $1 {[%emt 0:06:30]} Qe7 {[%emt 0:09:00]} 23. Rfe1 {[%emt 0:03:30]} Rxf3 $4 {[%emt 0:02:30]} (23... Be4 $16 24. Qc8+ Rf8 25. Qc4+ Qf7 26. Qxf7+ R8xf7) 24. gxf3 $4 {[%emt 0:01:30]} (24. Nxf3 $18 {was the only winning move.} Bxf3 25. gxf3) 24... Bxd4 $2 {[%emt 0:10:52]} (24... Ne5 $19 25. Qa4 Bxd4) 25. Rxd4 {[%emt 0:00:30]} (25. Bxd4 $5 {[%cal Re1e7]} Qg5+ 26. Kf1 Bxf3 27. Re8+ Nf8 28. Rd3 Qg2+ {[%mdl 64] Double Attack} 29. Ke1 $14) 25... Ne5 {[%emt 0:00:11]} 26. Red1 {[%emt 0:12:30]} Nxf3+ {[%emt 0:00:38] Double Attack} 27. Kf1 {[%emt 0:02:30]} Ba6+ {[%emt 0:07:49]} 28. Kg2 {[%emt 0:00:30]} Nxd4 {[%emt 0:00:11]} 29. Rxd4 {[%emt 0:01:30]} Qb7+ {[%emt 0:00:53]} 30. Kg1 {[%emt 0:00:30]} Qe7 {[%emt 0:06:57]} 31. Qe4 {[%emt 0:02:30]} Qc7 {[%emt 0:02:13]} 32. Qe8+ {[%emt 0:00:30]} Rf8 {[%emt 0:00:30]} 33. Qe6+ {[%emt 0:00:30]} Kh8 {[%emt 0:01:13]} 34. Qxa6 {[%emt 0:00:30]} Rf6 {[%emt 0:00:11]} 35. Qd3 {[%emt 0:00:30]} Rf8 {[%emt 0:01:11]} 36. Rd7 {[%emt 0:01:30]} Qe5 $18 {[%emt 0:01:54]} 37. Qd4 {[%emt 0:00:30]} 1-0

[Event "TUR-ch Veterans 2020"]
[Site "Antalya-Belek"]
[Date "2020.01.20"]
[Round "2"]
[White "Altin, Halis"]
[Black "Tozaki, Halil"]
[Result "1-0"]
[ECO "B42"]
[WhiteElo "1551"]
[BlackElo "1880"]
[Annotator "NA"]
[PlyCount "51"]
[EventDate "2020.01.19"]
[EventCountry "TUR"]
[SourceTitle "playchess.com"]
[Source "ChessBase"]
[SourceQuality "1"]
[TimeControl "5400+30"]

1. e4 {[%emt 0:00:30]} c5 {[%emt 0:00:30]} 2. Nf3 {[%emt 0:00:00]} e6 {[%emt 0:00:00]} 3. d4 {[%emt 0:00:00]} cxd4 {[%emt 0:00:00]} 4. Nxd4 {[%emt 0:00:30]} a6 {[%emt 0:00:30]} 5. Be3 {[%emt 0:00:30]} Nf6 {[%emt 0:00:30]} 6. Bd3 {[%emt 0:00:30]} Nc6 {[%emt 0:00:30]} 7. Nd2 {[%emt 0:03:30]} Qc7 {[%emt 0:00:30]} 8. O-O {[%emt 0:01:30]} Ne5 {[%emt 0:06:30] B42: Sicilian: Kan Variation: 5 Bd3} (8... e5 9. Nxc6 dxc6 10. h4 Be6 11. Qe2 b5 12. a4 Rd8 13. axb5 axb5 14. Ra7 Qb8 15. Ra6 Rc8 16. Nb3 {1-0 (46) Bonev,T (2204)-Vasilev,M (2472) Sunny Beach 2015}) 9. h3 {[%emt 0:06:30]} Be7 $146 {[%emt 0:02:30]} ({Predecessor:} 9... d5 10. f4 Nc4 11. Bxc4 dxc4 12. c3 Bd7 13. a4 Rc8 14. Qe2 Be7 15. a5 O-O 16. Nc2 {0-1 (31) Jess,A (1839)-Wirth,H (2067) Berlin 2017}) 10. Rc1 {[%emt 0:06:30]} d6 {[%emt 0:01:30]} 11. f4 {[%emt 0:03:30]} Nc6 {[%emt 0:01:30]} 12. c3 {[%emt 0:06:30]} Bd7 {[%emt 0:00:30]} 13. Qf3 {[%emt 0:05:30]} Rc8 {[%emt 0:02:30]} 14. Ne2 {[%emt 0:01:30]} e5 {[%emt 0:00:30]} 15. f5 {[%emt 0:05:30]} h5 {[%emt 0:02:30]} (15... b5 $142) 16. Nc4 {[%emt 0:02:30]} O-O {[%emt 0:06:30]} 17. Nb6 {[%emt 0:03:30]} Rcd8 {[%emt 0:00:30]} 18. Nd5 {[%emt 0:01:30]} Qb8 $2 {[%emt 0:08:30]} (18... Nxd5 19. exd5 f6 20. dxc6 Bxc6) 19. Nxf6+ {[%emt 0:01:30]} Bxf6 {[%emt 0:00:30]} 20. Qxh5 {[%emt 0:00:30]} Be8 {[%emt 0:02:30]} 21. Rf3 {[%emt 0:01:30]} d5 {[%emt 0:02:30]} 22. Rg3 {[%emt 0:05:30]} Qd6 {[%emt 0:00:30]} 23. Bh6 {[%emt 0:06:30]} Qe7 {[%emt 0:06:30]} (23... Ne7 $142 24. Qg4 g6 25. Bxf8 Kxf8 26. fxg6 dxe4) 24. Rf1 {[%emt 0:04:30]} d4 {[%emt 0:07:30] [#]} 25. Bxg7 $1 {[%emt 0:00:30] Remove Defender, Clearance} Rd6 {[%emt 0:00:30]} 26. Bh6+ {[%emt 0:00:30]} 1-0

[Event "TUR-ch Veterans 2020"]
[Site "Antalya-Belek"]
[Date "2020.01.20"]
[Round "3"]
[White "Yilmaz, Turhan"]
[Black "Buker, Muhittin"]
[Result "1/2-1/2"]
[ECO "C47"]
[WhiteElo "2132"]
[BlackElo "2008"]
[Annotator "ChessBase"]
[PlyCount "295"]
[EventDate "2020.01.19"]
[EventCountry "TUR"]
[SourceTitle "playchess.com"]
[Source "ChessBase"]
[SourceQuality "1"]
[TimeControl "5400+30"]

1. e4 {[%emt 0:00:30]} e5 {[%emt 0:00:30]} 2. Nf3 {[%emt 0:00:00]} Nf6 {[%emt 0:01:30]} 3. Nc3 {[%emt 0:00:00]} Nc6 {[%emt 0:00:30]} 4. d4 {[%emt 0:00:00]} exd4 {[%emt 0:02:30]} 5. Nxd4 {[%emt 0:00:00]} Bb4 {[%emt 0:01:30]} 6. Nxc6 {[%emt 0:00:30]} dxc6 {[%emt 0:00:30]} 7. Qxd8+ {[%emt 0:01:30]} Kxd8 {[%emt 0:00:30]} 8. f3 {[%emt 0:00:00]} Be6 {[%emt 0:02:30]} 9. Bg5 {[%emt 0:03:00]} h6 {[%emt 0:01:30]} 10. O-O-O+ {[%emt 0:00:30]} Ke7 {[%emt 0:01:30]} 11. Bh4 {[%emt 0:00:30]} g5 {[%emt 0:01:30]} 12. Bg3 {[%emt 0:09:30]} Rac8 {[%emt 0:01:30]} 13. h4 {[%emt 0:00:30]} Nh5 {[%emt 0:01:30]} 14. Bf2 {[%emt 0:00:30]} Bd6 {[%emt 0:02:30]} 15. g4 {[%emt 0:06:30]} Ng3 {[%emt 0:02:30]} 16. Rh3 {[%emt 0:11:30]} Nxf1 {[%emt 0:01:30]} 17. Rxf1 {[%emt 0:00:30]} h5 {[%emt 0:00:30]} 18. Rg1 {[%emt 0:00:30]} hxg4 {[%emt 0:12:30]} 19. fxg4 {[%emt 0:00:00]} gxh4 {[%emt 0:00:00]} 20. Rxh4 {[%emt 0:02:00]} Be5 {[%emt 0:03:00]} 21. Ne2 {[%emt 0:07:30]} Rcg8 {[%emt 0:07:30]} 22. Rxh8 {[%emt 0:12:30]} Rxh8 {[%emt 0:00:30]} 23. Bd4 {[%emt 0:01:30]} Rh2 {[%emt 0:00:30]} 24. Bxe5 {[%emt 0:01:30]} Rxe2 {[%emt 0:00:30]} 25. Bxc7 {[%emt 0:02:30]} Rxe4 {[%emt 0:00:30]} 26. g5 {[%emt 0:01:30]} Bf5 {[%emt 0:10:30]} 27. Rg2 {[%emt 0:05:30]} Kd7 {[%emt 0:00:30]} 28. Bb8 {[%emt 0:00:30]} b6 {[%emt 0:01:30]} 29. Rf2 {[%emt 0:00:30]} Be6 {[%emt 0:00:30]} 30. b3 {[%emt 0:01:30]} a5 {[%emt 0:01:30]} 31. Kb2 {[%emt 0:02:30]} a4 {[%emt 0:03:30]} 32. Bf4 {[%emt 0:03:30]} b5 {[%emt 0:00:30]} 33. Bd2 {[%emt 0:00:00]} Bd5 {[%emt 0:03:30]} 34. Bf4 {[%emt 0:01:00]} Kc8 {[%emt 0:08:30]} 35. Bd2 {[%emt 0:01:30]} Kb7 {[%emt 0:00:00]} 36. b4 {[%emt 0:04:30]} Kc7 {[%emt 0:00:00]} 37. a3 {[%emt 0:00:30]} Kd7 {[%emt 0:00:30]} 38. Bf4 {[%emt 0:01:30]} Ke7 {[%emt 0:02:30]} 39. Bd2 {[%emt 0:00:30]} Ke6 {[%emt 0:00:30]} 40. Rf6+ {[%emt 0:00:30]} Ke7 {[%emt 0:00:30]} 41. Rf2 {[%emt 0:00:30]} Rg4 {[%emt 0:00:30]} 42. Bf4 {[%emt 0:02:39]} Ke6 {[%emt 0:00:30]} 43. Bd2 {[%emt 0:01:29]} Ke5 {[%emt 0:01:30]} 44. Bc3+ {[%emt 0:00:30]} Ke4 {[%emt 0:00:30]} 45. Bd2 {[%emt 0:00:23]} Bc4 {[%emt 0:03:30]} 46. Bc1 {[%emt 0:00:57]} Rh4 {[%emt 0:02:30]} 47. Bd2 {[%emt 0:00:19]} Be6 {[%emt 0:02:44]} 48. Bc1 {[%emt 0:00:51]} Bf5 {[%emt 0:01:58]} 49. Bd2 {[%emt 0:00:58]} Bg6 {[%emt 0:00:18]} 50. Bc1 {[%emt 0:00:26]} Rh3 {[%emt 0:02:33]} 51. Bd2 {[%emt 0:00:30]} Bh5 {[%emt 0:04:34]} 52. Rf4+ {[%emt 0:02:55]} Ke5 {[%emt 0:00:11]} 53. Rf6 {[%emt 0:00:29]} Kd5 {[%emt 0:00:48]} 54. Rf5+ {[%emt 0:01:22]} Ke6 {[%emt 0:00:35]} 55. Rf6+ {[%emt 0:00:21]} Kd7 {[%emt 0:00:07]} 56. Rf4 {[%emt 0:02:13]} Rh2 {[%emt 0:02:07]} 57. Rd4+ {[%emt 0:00:13]} Ke7 {[%emt 0:00:20]} 58. Re4+ {[%emt 0:00:35]} Kd7 {[%emt 0:01:33]} 59. Rd4+ {[%emt 0:00:38]} Ke6 {[%emt 0:00:22]} 60. Rd8 {[%emt 0:01:28]} Bg6 {[%emt 0:00:21]} 61. Kc3 {[%emt 0:01:51]} Ke7 {[%emt 0:00:44]} 62. Rd4 {[%emt 0:00:13]} Rg2 {[%emt 0:00:21]} 63. Kb2 {[%emt 0:00:53]} Ke6 {[%emt 0:00:29]} 64. Kc3 {[%emt 0:00:41]} Rf2 {[%emt 0:01:09]} 65. Rf4 {[%emt 0:01:26]} Re2 {[%emt 0:01:02]} 66. Rd4 {[%emt 0:01:01]} Be4 {[%emt 0:00:40]} 67. Rd8 {[%emt 0:00:34]} Rg2 {[%emt 0:01:05]} 68. Re8+ {[%emt 0:00:17]} Kf5 {[%emt 0:00:30]} 69. Re7 {[%emt 0:00:44]} Bd5 {[%emt 0:00:16]} 70. Re8 {[%emt 0:00:22]} Be6 {[%emt 0:01:08]} 71. Rd8 {[%emt 0:00:32]} Rg1 {[%emt 0:00:18]} 72. Kb2 {[%emt 0:00:24]} Rd1 {[%emt 0:00:35]} 73. Rd3 {[%emt 0:01:18]} Bd5 {[%emt 0:00:29]} 74. Bc1 {[%emt 0:01:54]} Rg1 {[%emt 0:00:56]} 75. Rd2 {[%emt 0:01:32]} Rg4 {[%emt 0:01:11]} 76. Rf2+ {[%emt 0:00:37]} Ke5 {[%emt 0:00:25]} 77. Bd2 {[%emt 0:00:31]} Be6 {[%emt 0:00:33]} 78. Re2+ {[%emt 0:00:38]} Kd5 {[%emt 0:00:22]} 79. Kc3 {[%emt 0:01:09]} Bf5 {[%emt 0:00:45]} 80. Kb2 {[%emt 0:01:11]} Bg6 {[%emt 0:00:18]} 81. Re7 {[%emt 0:00:28]} Rc4 {[%emt 0:00:14]} 82. Bc3 {[%emt 0:00:18]} Rg4 {[%emt 0:01:01]} 83. Re5+ {[%emt 0:00:32]} Kd6 {[%emt 0:00:09]} 84. Re2 {[%emt 0:00:13]} Rxg5 {[%emt 0:00:19]} 85. Bd2 {[%emt 0:00:33]} Rg4 {[%emt 0:00:19]} 86. Rf2 {[%emt 0:00:10]} Ke6 {[%emt 0:00:08]} 87. Re2+ {[%emt 0:00:10]} Be4 {[%emt 0:00:11]} 88. Rf2 {[%emt 0:00:39]} f5 {[%emt 0:00:01]} 89. Bf4 {[%emt 0:00:00]} Rg2 {[%emt 0:00:26]} 90. Rxg2 {[%emt 0:00:09]} Bxg2 {[%emt 0:00:01]} 91. Be3 {[%emt 0:01:07]} Kd5 {[%emt 0:00:03]} 92. Kc1 {[%emt 0:00:06]} Ke4 {[%emt 0:00:35]} 93. Kd2 {[%emt 0:00:21]} Bf1 {[%emt 0:00:12]} 94. Bc5 {[%emt 0:00:13]} f4 {[%emt 0:00:56]} 95. Bb6 {[%emt 0:00:09]} Bc4 {[%emt 0:00:59]} 96. Ba7 {[%emt 0:00:11]} Kf3 {[%emt 0:00:09]} 97. Bb6 {[%emt 0:00:12]} Kg2 {[%emt 0:00:44]} 98. Ba7 {[%emt 0:00:10]} f3 {[%emt 0:00:22]} 99. Ke1 {[%emt 0:00:09]} Bf7 {[%emt 0:00:40]} 100. Bb6 {[%emt 0:00:32]} Bg6 {[%emt 0:00:09]} 101. Bc5 {[%emt 0:00:06]} Bxc2 {[%emt 0:00:18]} 102. Bb6 {[%emt 0:00:08]} Bg6 {[%emt 0:00:35]} 103. Ba7 {[%emt 0:00:10]} Bh5 {[%emt 0:00:24]} 104. Bc5 {[%emt 0:00:14]} Kg3 {[%emt 0:00:21]} 105. Bf2+ {[%emt 0:00:12]} Kf4 {[%emt 0:00:18]} 106. Kd2 {[%emt 0:00:36]} Ke4 {[%emt 0:00:03]} 107. Kc3 {[%emt 0:00:00]} Bf7 {[%emt 0:00:19]} 108. Kd2 {[%emt 0:00:03]} Bd5 {[%emt 0:00:30]} 109. Kc3 {[%emt 0:00:30]} Be6 {[%emt 0:00:30]} 110. Kd2 {[%emt 0:00:30]} Kd5 {[%emt 0:00:30]} 111. Kc3 {[%emt 0:00:30]} Bf5 {[%emt 0:00:30]} 112. Bc5 {[%emt 0:00:30]} Ke5 {[%emt 0:00:30]} 113. Kd2 {[%emt 0:00:30]} Kf4 {[%emt 0:00:30]} 114. Bf2 {[%emt 0:00:30]} Bg6 {[%emt 0:00:30]} 115. Ke1 {[%emt 0:00:30]} Bh7 {[%emt 0:00:30]} 116. Kd2 {[%emt 0:00:30]} Ke4 {[%emt 0:00:30]} 117. Bc5 {[%emt 0:00:30]} Kd5 {[%emt 0:00:30]} 118. Kc3 {[%emt 0:00:30]} Bg6 {[%emt 0:00:30]} 119. Bf2 {[%emt 0:00:30]} Bf7 {[%emt 0:00:30]} 120. Bc5 {[%emt 0:00:30]} Ke4 {[%emt 0:00:30]} 121. Kd2 {[%emt 0:00:30]} Be6 {[%emt 0:00:30]} 122. Bf2 {[%emt 0:00:30]} Bb3 {[%emt 0:00:30]} 123. Bc5 {[%emt 0:00:30]} Kf4 {[%emt 0:00:30]} 124. Bf2 {[%emt 0:00:30]} Bf7 {[%emt 0:00:30]} 125. Bc5 {[%emt 0:00:30]} Kg3 {[%emt 0:00:30]} 126. Ke1 {[%emt 0:00:30]} Bh5 {[%emt 0:00:30]} 127. Bf2+ {[%emt 0:00:30]} Kf4 {[%emt 0:00:30]} 128. Kd2 {[%emt 0:00:30]} Kf5 {[%emt 0:00:30]} 129. Bc5 {[%emt 0:00:30]} Ke4 {[%emt 0:00:30]} 130. Bf2 {[%emt 0:00:30]} Kd5 {[%emt 0:00:30]} 131. Kc3 {[%emt 0:00:30]} Bg6 {[%emt 0:00:30]} 132. Bc5 {[%emt 0:00:30]} Ke5 {[%emt 0:00:30]} 133. Kd2 {[%emt 0:00:30]} Ke4 {[%emt 0:00:30]} 134. Bf2 {[%emt 0:00:30]} Bf7 {[%emt 0:00:30]} 135. Kc3 {[%emt 0:00:30]} Be6 {[%emt 0:00:30]} 136. Kd2 {[%emt 0:00:30]} Bg8 {[%emt 0:00:30]} 137. Kc3 {[%emt 0:00:30]} Kf4 {[%emt 0:00:30]} 138. Kd2 {[%emt 0:00:30]} Be6 {[%emt 0:00:30]} 139. Ke1 {[%emt 0:00:30]} Bf5 {[%emt 0:00:30]} 140. Kd2 {[%emt 0:00:30]} Bg6 {[%emt 0:00:30]} 141. Ke1 {[%emt 0:00:30]} Ke4 {[%emt 0:00:30]} 142. Kd2 {[%emt 0:00:30]} Bh5 {[%emt 0:00:30]} 143. Bc5 {[%emt 0:00:30]} Bg4 {[%emt 0:00:30]} 144. Bf2 {[%emt 0:00:30]} Bh5 {[%emt 0:00:30]} 145. Bc5 {[%emt 0:00:30]} Kd5 {[%emt 0:00:30]} 146. Kc3 {[%emt 0:00:30]} Bg6 {[%emt 0:00:30]} 147. Bf2 {[%emt 0:00:30]} Bf7 {[%emt 0:00:30]} 148. Bc5 {[%emt 0:00:30]} 1/2-1/2

[Event "TUR-ch Veterans 2020"]
[Site "Antalya-Belek"]
[Date "2020.01.20"]
[Round "3"]
[White "Tozaki, Halil"]
[Black "Saglam, Sami"]
[Result "1-0"]
[ECO "D06"]
[WhiteElo "1880"]
[BlackElo "1407"]
[Annotator "NA RC"]
[PlyCount "69"]
[EventDate "2020.01.19"]
[EventCountry "TUR"]
[SourceTitle "playchess.com"]
[Source "ChessBase"]
[SourceQuality "1"]
[TimeControl "5400+30"]

1. d4 {[%emt 0:00:30]} d5 {[%emt 0:00:30]} 2. Nf3 {[%emt 0:00:00]} Bf5 {[%emt 0:00:30]} 3. c4 {[%emt 0:00:00]} e6 {[%emt 0:00:30]} 4. Nc3 {[%emt 0:00:30]} Nf6 {[%emt 0:00:30]} 5. Qb3 {[%emt 0:01:30]} b6 {[%emt 0:02:30]} (5... Nc6 6. cxd5 exd5 7. Bg5 Na5 8. Qa4+ c6 9. Bxf6 gxf6 10. e3 Qb6 11. O-O-O O-O-O 12. Bd3 Bg6 13. Qc2 Nc4 {½-½ (28) Wojtaszek,R (2744)-Grischuk,A (2810) Beijing 2014}) 6. Bg5 {[%emt 0:00:30] D06: Queen's Gambit: Symmetrical and Baltic Defences} Be7 {[%emt 0:00:30]} 7. Bxf6 {[%emt 0:00:30]} Bxf6 {[%emt 0:00:00]} 8. cxd5 {[%emt 0:00:30]} O-O {[%emt 0:02:00]} 9. e4 {[%emt 0:00:30]} Bg4 {[%emt 0:01:30]} 10. e5 {[%emt 0:00:30]} Bxf3 {[%emt 0:00:30]} 11. gxf3 {[%emt 0:00:30]} Be7 $146 {[%emt 0:00:30]} ({Predecessor:} 11... Bg5 12. Rd1 exd5 13. Nxd5 c6 {½-½ (47) Albayrak,A (1673)-Cuenot Delattre,D Nuremberg 2019}) 12. O-O-O {[%emt 0:03:30]} exd5 {[%emt 0:01:30]} 13. Nxd5 {[%emt 0:01:30]} c6 {[%emt 0:02:30]} 14. Nxe7+ {[%emt 0:00:30]} Qxe7 {[%emt 0:01:30]} 15. Bd3 {[%emt 0:01:30]} Nd7 {[%emt 0:00:30]} 16. Be4 {[%emt 0:06:30]} Rac8 {[%emt 0:00:30]} 17. f4 {[%emt 0:00:30]} Qh4 {[%emt 0:03:30]} 18. Qg3 {[%emt 0:00:30]} Qh6 {[%emt 0:00:30]} 19. Kb1 {[%emt 0:02:30]} f5 {[%emt 0:01:30]} 20. Bc2 {[%emt 0:01:30]} c5 {[%emt 0:01:30]} 21. d5 {[%emt 0:00:30]} c4 {[%emt 0:00:30]} 22. Rhg1 {[%emt 0:02:30]} b5 {[%emt 0:02:30]} (22... Nc5 $142 23. e6 Qf6) 23. Qg5 {[%emt 0:02:30]} Qxg5 {[%emt 0:01:30]} 24. Rxg5 {[%emt 0:00:30]} ({Not} 24. fxg5 Nxe5 25. d6 g6 $14) 24... g6 $18 {[%emt 0:00:00]} 25. h4 {[%emt 0:00:30]} Nc5 {[%emt 0:00:00]} 26. f3 {[%emt 0:02:30]} b4 {[%emt 0:00:30]} 27. Rdg1 {[%emt 0:03:30]} b3 {[%emt 0:00:30]} 28. Bxf5 {[%emt 0:01:30]} Kh8 {[%emt 0:00:00]} 29. Bxc8 {[%emt 0:00:30]} Rxc8 {[%emt 0:00:00]} 30. h5 {[%emt 0:00:00]} gxh5 {[%emt 0:00:30]} 31. e6 {[%emt 0:02:00]} bxa2+ {[%emt 0:00:30]} 32. Kxa2 {[%emt 0:00:30]} Nd3 {[%emt 0:00:30]} 33. e7 {[%emt 0:00:30]} Nxf4 {[%emt 0:01:30]} 34. Rg8+ {[%emt 0:00:30]} Rxg8 {[%emt 0:01:30]} 35. Rxg8+ {[%emt 0:00:30]} 1-0